Cogmind - Beta 14 *** ADVENTURER MODE // 2025.03.11 @ 01:45:51 Player: EN-G1N Result: Destroyed by Y-54 Guardian with Flak Gun Performance ------------- Evolutions (4) 2000 Regions Visited (6) 1200 Robots Destroyed (99) 495 Value Destroyed (3768) 3768 Prototype IDs (0) 0 Alien Tech Used (0) 0 Bonus (443) 443 TOTAL SCORE: 7906 Bonus ------- High Alert Combat Kills 243 Follower Combat Kills 254 Friendly Fire -54 Cogmind --------- Core Integrity 0/850 Matter 300/300 Energy 100/100 System Corruption 9% Temperature Cool (18) Movement Core (350) Ox6 Location -6/Extension Parts ------- > --- POWER (2) -------- (None) > --- PROPULSION (4) --- (None) > --- UTILITY (6) ------ Large Storage Unit Visual Processing Unit Core Analyzer > --- WEAPON (3) ------- (None) > --- INVENTORY (15) --- Improved Heat Sink High-capacity Matter Pod (200) Advanced Terrain Scan Processor Advanced Melee Analysis Suite Armor Integrity Analyzer Energy Filter Reaction Control System Corruption Screen Shock Rifle Powered Hammer Peak State ------------ > --- POWER ------------ Angular Momentum Engine Light Angular Momentum Engine > --- PROPULSION ------- Carbon-fiber Leg Improved Titanium Leg Flexi-carbon Leg Flexi-carbon Leg > --- UTILITY ---------- Cryofiber Web Improved Heat Sink Large Storage Unit Visual Processing Unit Improved Sensor Array Core Analyzer > --- WEAPON ----------- Thermic Laser Thermic Laser Thermic Laser > --- INVENTORY -------- Improved Heat Sink High-capacity Matter Pod Advanced Terrain Scan Processor Advanced Melee Analysis Suite Armor Integrity Analyzer Energy Filter Reaction Control System Corruption Screen Shock Rifle Particle Gun Powered Hammer [Rating: 61] Favorites ----------- Power Improved Deuterium Engine Engine Improved Deuterium Engine Power Core Micro Nuclear Core Propulsion Improved Treads Treads Improved Treads Leg Aluminum Leg Hover Unit Improved Hover Unit Utility Large Storage Unit Device Improved Heat Sink Storage Large Storage Unit Processor Visual Processing Unit Protection Hardened Medium Armor Plating Weapon Thermic Laser Energy Gun Thermic Laser Energy Cannon Heavy Ion Cannon Ballistic Gun Shotgun Launcher Heavy Missile Launcher Impact Weapon Mace Build | -11 -10 -9 -8 -7 -6 -6 ------- Run | Yrd Mat Mat Mat Fac Fac Ext Slots Evolved 8 | . . 2 2 2 2 . Power 1 | . . . . . 1 . Propulsion 2 | . . 2 . . . . Utility 4 | . . . 2 2 . . Weapon 1 | . . . . . 1 . Parts Attached 112 | 6 1 10 16 48 23 8 Power 13 | 1 . 1 1 4 4 2 Engine 7 | 1 . 1 1 2 . 2 Core 6 | . . . . 2 4 . Reactor . | . . . . . . . Propulsion 20 | 2 . 4 . 6 6 2 Treads 6 | 2 . 4 . . . . Leg 12 | . . . . 4 6 2 Wheel . | . . . . . . . Hover 2 | . . . . 2 . . Flight . | . . . . . . . Utility 24 | 1 . 1 3 13 3 3 Device 11 | 1 . . . 6 1 3 Storage 1 | . . 1 . . . . Processor 2 | . . . 1 1 . . Hackware . | . . . . . . . Protection 10 | . . . 2 6 2 . Artifact . | . . . . . . . Weapon 55 | 2 1 4 12 25 10 1 Energy Gun 9 | 1 . . 2 . 5 1 Energy Cannon 14 | . . . 2 10 2 . Ballistic Gun 15 | 1 1 3 4 5 1 . Ballistic Cannon . | . . . . . . . Launcher 4 | . . . . 4 . . Special Weapon . | . . . . . . . Impact Weapon 13 | . . 1 4 6 2 . Slashing Weapon . | . . . . . . . Piercing Weapon . | . . . . . . . Special Melee Weapon . | . . . . . . . Unidentified Prototypes . | . . . . . . . Parts Lost 35 | . . . 1 10 6 18 Power 6 | . . . . 1 2 3 Propulsion 11 | . . . . 4 1 6 Utility 12 | . . . 1 4 2 5 Weapon 6 | . . . . 1 1 4 Highest Loss Streak 13 | . . . 1 3 3 13 To Critical Strikes . | . . . . . . . Average Slot Usage (%) 92 | . 85 93 99 92 95 87 Engine 6 | . 14 11 9 4 2 3 Core 2 | . . . . 2 5 3 Treads 14 | . 28 38 36 9 . . Leg 11 | . . . . 11 25 22 Device 10 | . 14 11 9 11 6 13 Storage 6 | . . 9 9 7 6 6 Processor 10 | . . . 8 13 13 13 Protection 8 | . . . 8 10 12 2 Energy Gun 4 | . 3 . . . 11 19 Energy Cannon 3 | . . . . 8 3 . Ballistic Gun 8 | . 24 20 13 4 3 . Impact Weapon 1 | . . 1 4 . . . Peak Build Rating 61 | 6 6 16 26 42 60 61 Average Rating 34 | 4 6 13 19 37 56 55 On Entrance 21 | . 6 6 16 26 42 56 Naked Turns . | . . . . . . . Heaviest Build 81 | 9 9 32 47 58 81 57 Greatest Support 92 | 40 40 92 92 92 77 77 Greatest Overweight (x) 16 | . . . . 16 1 9 Average Overweight (x) . | . . . . . . . Largest Inventory Capacity 15 | 5 5 15 15 15 15 15 Average Capacity 13 | 5 5 14 15 15 15 15 Most Carried 15 | 3 5 10 15 15 15 15 Average Carried 12 | 1 2 6 12 14 14 12 Final Capacity 15 | 5 5 15 15 15 15 15 Final Carried 15 | 2 5 10 15 15 15 10 Class Distribution -------------------- 59% | Mutant 16% | Scavenger-Mutant 8% | Gunner 6% | Scavenger-Tank 6% | Tank Dominant Class ---------------- Mutant | -10/Materials Mutant | -9/Materials Mutant | -8/Materials Mutant | -7/Factory Scavenger-Tank | -6/Factory Gunner | -6/Extension Resources | -11 -10 -9 -8 -7 -6 -6 ----------- Run | Yrd Mat Mat Mat Fac Fac Ext Matter Collected 2180 | 154 103 390 333 683 447 70 Remotely . | . . . . . . . Salvage Created 3782 | 64 103 246 504 1715 481 669 Parts 203 | 10 11 10 20 118 16 18 Haulers Intercepted . | . . . . . . . Recyclers Shooed 1 | . . 1 . . . . Parts Field Recycled . | . . . . . . . Retrieved Matter . | . . . . . . . Parts Self-Destructed . | . . . . . . . Prevented . | . . . . . . . Kills | -11 -10 -9 -8 -7 -6 -6 ------- Run | Yrd Mat Mat Mat Fac Fac Ext Combat Hostiles Destroyed 82 | . 5 3 11 43 9 11 Guns 38 | . 5 3 11 7 3 9 Cannons 27 | . . . . 22 5 . AOE 13 | . . . . 13 . . Classes Destroyed 10 | 1 2 2 1 3 1 . Worker 6 | . . . 2 3 . 1 Builder 2 | . . . . 2 . . Tunneler 4 | 3 . . . . . 1 Recycler 2 | . . 1 1 . . . Watcher 3 | . . . . 2 . 1 Swarmer 23 | . 3 . 3 13 1 3 Grunt 31 | . 2 . 5 21 . 3 Sentry 19 | . . 3 3 5 3 5 Hunter 4 | . . . . . 4 . Programmer 5 | . . . . 4 1 . Best Kill Streak 7 | 2 2 2 4 7 3 3 Combat Bots Only 5 | . 2 1 4 5 3 3 Max Kills in Single Turn 4 | 1 1 1 2 4 1 1 Gunslinging . | . . . . . . . Exploded 3 | . . . . 3 . . Melee . | . . . . . . . Uniques/NPCs Destroyed . | . . . . . . . Combat | -11 -10 -9 -8 -7 -6 -6 -------- Run | Yrd Mat Mat Mat Fac Fac Ext Hostile Shots Fired 935 | . 24 16 42 321 187 345 Missed 359 | . 8 3 8 126 63 151 Damage Taken 5926 | . 106 155 355 1920 1375 2015 Core 1121 | . 7 48 12 202 68 784 Absorbed by Shields 34 | . . . . . . 34 Ignored by Resistances 1894 | . 35 43 106 578 559 573 Core Remaining (%) 90 | 100 97 88 97 71 . . Volleys Fired 205 | 9 21 11 27 86 19 32 Largest 3 | 2 2 2 2 2 3 3 Hottest 255 | 60 60 46 46 130 255 255 Shots Fired 432 | 18 42 22 48 156 52 94 Gun 294 | 18 42 22 48 33 37 94 Cannon 122 | . . . . 107 15 . Launcher 16 | . . . . 16 . . Special . | . . . . . . . Kinetic 168 | 9 41 22 48 33 15 . Thermal 238 | . . . . 107 37 94 Explosive 16 | . . . . 16 . . Electromagnetic 10 | 9 1 . . . . . Robot Hit Streak 39 | 11 8 9 30 39 16 26 Robot Miss Streak 3 | 1 3 1 2 2 2 3 Penetration Max . | . . . . . . . Secondary Targets 4 | . 1 . . 1 . 2 Max Gunslinging Chain 1 | . 1 . . 1 . 1 Shots Hit Robots 338 | 15 30 19 45 118 41 70 Core Hits 214 | 5 12 9 28 93 32 35 Critical Kills 2 | . . . . 1 1 . Critical Parts Destroyed . | . . . . . . . Critical Strikes 18 | . . . . 1 7 10 Burn 16 | . . . . . 6 10 Meltdown 2 | . . . . 1 1 . Melee Attacks 64 | . . 10 24 23 7 . Impact 64 | . . 10 24 23 7 . Slashing . | . . . . . . . Piercing . | . . . . . . . Sneak Attacks 2 | . . . 2 . . . Combat Hostiles . | . . . . . . . Follow-up Attacks . | . . . . . . . Damage Inflicted 8504 | 165 242 213 937 4624 920 1403 Guns 3787 | 165 242 197 801 470 510 1402 Cannons 2829 | . . . . 2419 410 . Explosions 1683 | . . . . 1683 . . Melee 121 | . . . 121 . . . Ramming 84 | . . 16 15 52 . 1 Kinetic 1922 | 56 242 197 801 470 156 . Thermal 4627 | . . . . 2461 764 1402 Explosive 1563 | . . . . 1563 . . Electromagnetic 187 | 109 . . . 78 . . Impact 121 | . . . 121 . . . Slashing . | . . . . . . . Piercing . | . . . . . . . Highest Corruption 9 | . . . . 1 . 9 Average Corruption 1 | . . . . 1 . 9 Corruption Purged . | . . . . . . . Corruption Blocked . | . . . . . . . Effects 14 | . . . . 13 . 1 Message Errors 1 | . . . . 1 . . Matter Fused 5 | . . . . 5 . . Heat Flow Errors 1 | . . . . 1 . . Energy Discharges 2 | . . . . 2 . . Data Loss (minor) 2 | . . . . 1 . 1 Alerts 1 | . . . . 1 . . Weapon Failures 2 | . . . . 2 . . Overload Shots . | . . . . . . . Overflow Damage 157 | . . . 66 91 . . Projectiles 39 | . . . . 39 . . Explosions 52 | . . . . 52 . . Melee 66 | . . . 66 . . . Knockbacks 1 | . . . 1 . . . Impact 1 | . . . 1 . . . Kinetic . | . . . . . . . Secondary . | . . . . . . . Self-Inflicted Damage 85 | . . . . 85 . . Shots 2 | . . . . 2 . . Rammed 8 | . . 1 4 3 . . Targets Rammed 11 | . . 1 4 5 . 1 Kicked 3 | . . . . 2 . 1 Crushed . | . . . . . . . Highest Temperature 482 | 40 20 7 19 209 482 411 Average Temperature 96 | 19 9 5 2 58 152 164 Received Heat Transfer 1689 | . 24 63 198 723 264 417 Effects 6 | . . . . . 5 1 Energy Bleed 2 | . . . . . 1 1 Interference 3 | . . . . . 3 . Damage (minor) 1 | . . . . . 1 . Siege Activations . | . . . . . . . Robots Corrupted 2 | . . . 2 . . . Combat Hostiles . | . . . . . . . Parts Fried 1 | . . . 1 . . . Impact Corruptions 4 | . . . 4 . . . Robots Melted 4 | . . . . 1 1 2 Combat Hostiles 4 | . . . . 1 1 2 Parts Melted 36 | . . . . 9 12 15 Heat Transferred 10100 | . . . . 3195 2068 4837 Parts Sabotaged . | . . . . . . . Parts Stolen . | . . . . . . . Parts Stripped . | . . . . . . . Power Chain Reactions . | . . . . . . . Alert | -11 -10 -9 -8 -7 -6 -6 ------- Run | Yrd Mat Mat Mat Fac Fac Ext Peak Influence 673 | 15 135 134 187 673 192 269 Initial 87 | . 8 48 18 . 87 27 Average 192 | 5 48 57 61 361 94 121 Maximum Alert Level 2 | . . . . 2 . 1 Low Security (%) 66 | 100 100 100 100 20 100 86 Level 1 11 | . . . . 25 . 13 Level 2 21 | . . . . 53 . . Level 3 . | . . . . . . . Level 4 . | . . . . . . . Level 5 . | . . . . . . . High Security . | . . . . . . . Max Security . | . . . . . . . Squads Dispatched 19 | . 1 . 2 9 5 2 Investigation 3 | . 1 . . . 1 1 Extermination 5 | . . . . 4 1 . Reinforcement 7 | . . . . 5 1 1 Assault . | . . . . . . . Garrison 4 | . . . 2 . 2 . Intercept . | . . . . . . . Searches Triggered . | . . . . . . . Construction Impeded 2 | . . . . 2 . . Haulers Reinforced . | . . . . . . . Active Scanning Responses . | . . . . . . . Cargo Convoy Interrupts 1 | . . . . . 1 . Stealth | -11 -10 -9 -8 -7 -6 -6 --------- Run | Yrd Mat Mat Mat Fac Fac Ext Distress Signals 8 | . . . . 3 3 2 Communications Jammed . | . . . . . . . Distress Signals . | . . . . . . . Times Spotted 134 | . 11 5 14 59 17 28 Peak Tracking Total 6 | . 3 3 3 6 5 5 Tactical Retreats 9 | . 2 . 1 4 . 2 Traps | -11 -10 -9 -8 -7 -6 -6 ------- Run | Yrd Mat Mat Mat Fac Fac Ext Traps Triggered 9 | . 1 . . 3 4 1 Indirectly . | . . . . . . . Trap Hack Attempts . | . . . . . . . Triggered . | . . . . . . . Disarmed . | . . . . . . . Reprogrammed . | . . . . . . . Reused . | . . . . . . . Traps Extracted . | . . . . . . . Installed . | . . . . . . . Triggered 1 | . . . . . 1 . Machines | -11 -10 -9 -8 -7 -6 -6 ---------- Run | Yrd Mat Mat Mat Fac Fac Ext Machines Disabled 13 | . . . . 12 . 1 Max in Single Turn 5 | . . . . 5 . 1 Machines Repaired . | . . . . . . . Machines Dismantled . | . . . . . . . Machines Sabotaged . | . . . . . . . Overloaded Fab Kills . | . . . . . . . Hacking | -11 -10 -9 -8 -7 -6 -6 --------- Run | Yrd Mat Mat Mat Fac Fac Ext Machines Accessed 13 | . 2 2 2 . 1 6 Terminals 13 | . 2 2 2 . 1 6 Fabricators . | . . . . . . . Repair Stations . | . . . . . . . Recycling Units . | . . . . . . . Scanalyzers . | . . . . . . . Garrison Access . | . . . . . . . Total Hacks 20 | . 2 3 2 . 1 12 Successful 14 | . 1 2 2 . 1 8 Failed 6 | . 1 1 . . . 4 Catastrophic 1 | . . . . . . 1 Database Lockouts . | . . . . . . . Manual 10 | . 2 3 5 . . . Terminals 20 | . 2 3 2 . 1 12 Fabricators . | . . . . . . . Repair Stations . | . . . . . . . Recycling Units . | . . . . . . . Scanalyzers . | . . . . . . . Garrison Access . | . . . . . . . Terminal Hacks 14 | . 1 2 2 . 1 8 Record 5 | . . . . . . 5 Robot Analysis 5 | . 1 2 2 . . . Open Door 4 | . . . . . 1 3 Fabricator Hacks . | . . . . . . . Repair Station Hacks . | . . . . . . . Recycling Unit Hacks . | . . . . . . . Scanalyzer . | . . . . . . . Garrison Access Hacks . | . . . . . . . Unauthorized Hacks . | . . . . . . . Terminals . | . . . . . . . Fabricators . | . . . . . . . Repair Stations . | . . . . . . . Recycling Units . | . . . . . . . Scanalyzers . | . . . . . . . Garrison Access . | . . . . . . . Data Cores Recovered . | . . . . . . . Used . | . . . . . . . Hacking Detections 9 | . 1 1 1 . . 6 Full Trace Events 1 | . . . . . . 1 Feedback Events . | . . . . . . . Feedback Blocked . | . . . . . . . Robot Schematics Acquired . | . . . . . . . Robots Built . | . . . . . . . Authchips . | . . . . . . . Time . | . . . . . . . Total Robot Build Rating . | . . . . . . . Part Schematics Acquired . | . . . . . . . Parts Built . | . . . . . . . Authchips . | . . . . . . . Time . | . . . . . . . Total Part Build Rating . | . . . . . . . Parts Repaired . | . . . . . . . Time . | . . . . . . . Parts Recycled . | . . . . . . . Recycled Matter . | . . . . . . . Retrieved Matter . | . . . . . . . Retrieved Components . | . . . . . . . Parts Scanalyzed . | . . . . . . . Part Schematics Acquired . | . . . . . . . Parts Damaged . | . . . . . . . Bothacking | -11 -10 -9 -8 -7 -6 -6 ------------ Run | Yrd Mat Mat Mat Fac Fac Ext Used RIF Installer . | . . . . . . . Robots Hacked . | . . . . . . . Non-combat . | . . . . . . . Combat . | . . . . . . . Robot Hacks Applied . | . . . . . . . Relay Couplers Released 1 | . . . . . 1 . Machine Destruction 1 | . . . . . 1 . Fabnet Peak Effective % . | . . . . . . . Robots Rewired . | . . . . . . . Allies Hacked . | . . . . . . . Hacks Repelled . | . . . . . . . Allies | -11 -10 -9 -8 -7 -6 -6 -------- Run | Yrd Mat Mat Mat Fac Fac Ext Total Allies 3 | . . . . . . 3 Largest Group 2 | . . . . . . 2 Highest-Rated Group 190 | . . . . . . 190 Highest-Rated Ally 159 | . . . . . . 159 Total Orders . | . . . . . . . Ally Attacks 47 | . . . . . . 47 Total Damage 1252 | . . . . . . 1252 Kills 6 | . . . . . . 6 Allies Corrupted . | . . . . . . . Allies Melted . | . . . . . . . Intel | -11 -10 -9 -8 -7 -6 -6 ------- Run | Yrd Mat Mat Mat Fac Fac Ext Robot Analysis Total 5 | . 1 2 2 . . . Derelict Logs Recovered . | . . . . . . . Drone Launches . | . . . . . . . Drone Recoveries . | . . . . . . . Exploration | -11 -10 -9 -8 -7 -6 -6 ------------- Run | Yrd Mat Mat Mat Fac Fac Ext Turns Passed 7114 | 155 600 743 824 2881 1173 738 Spaces Moved 3610 | 61 252 364 367 1367 720 479 Core 33 | 6 . . . 20 . 7 Treads 1533 | 55 252 364 367 495 . . Legs 1902 | . . . . 710 720 472 Wheels . | . . . . . . . Hover 142 | . . . . 142 . . Flight . | . . . . . . . Fastest Speed 50 | 50 160 160 160 125 125 120 Average Speed 156 | 149 160 160 160 173 136 127 Slowest Speed 850 | 160 160 160 160 850 196 500 Overloaded Moves . | . . . . . . . Propulsion Burnouts . | . . . . . . . Robots Hopped . | . . . . . . . Cave-ins Triggered 1 | . . . . . . 1 Exploration Rate (%) 31 | 5 42 28 36 44 12 51 Regions Visited 6 Branch Regions 1 Pre-discovered Areas . | . . . . . . . Known Exits Taken . | . . . . . . . Unknown Exits Taken 6 | 1 1 1 1 1 1 . Scrap Searched . | . . . . . . . Spaces Dug 52 | . . 7 20 20 5 . Terrain Destroyed 186 | . . 7 20 153 6 . Melee 52 | . . 7 20 20 5 . Projectile 10 | . . . . 9 1 . AOE 124 | . . . . 124 . . Terrain Rammed . | . . . . . . . Walls Destroyed . | . . . . . . . Machines Disabled . | . . . . . . . Actions | -11 -10 -9 -8 -7 -6 -6 --------- Run | Yrd Mat Mat Mat Fac Fac Ext Total 4591 | 109 416 488 515 1671 858 534 Wait 453 | 26 138 76 48 90 64 11 Move 3604 | 60 251 363 366 1366 719 479 Hop . | . . . . . . . Pick Up 80 | 8 4 12 16 26 11 3 Fast Attach 10 | . . 1 1 3 5 . Attach 55 | 6 1 7 8 15 10 8 Detach 9 | . . . 5 1 3 . Swap 47 | . . 2 7 30 8 . Drop 53 | . 1 5 9 26 12 . Fire 205 | 9 21 11 27 86 19 32 Melee 64 | . . 10 24 23 7 . Ram . | . . . . . . . Kick 3 | . . . . 2 . 1 Crush 8 | . . 1 4 3 . . Escape Stasis . | . . . . . . . Rewire . | . . . . . . . Trap . | . . . . . . . Miscellaneous . | . . . . . . . Route ------- -11/Scrapyard -10/Materials -9/Materials -8/Materials -7/Factory -6/Factory -6/Extension History --------- Turn | Location | Event 19 | -11/Scrapyard | Discovered new exit (range 16) 156 | -11/Scrapyard | Entered Materials 309 | -10/Materials | Build established: Mutant 703 | -10/Materials | Discovered new exit (range 16) 756 | -10/Materials | Entered another Materials area 756 | -9/Materials | Evolved 2 slots: Propulsion x2 1475 | -9/Materials | Discovered new exit (range 3) 1499 | -9/Materials | Entered another Materials area 1499 | -8/Materials | Evolved 2 slots: Utility x2 2161 | -8/Materials | Garrison activated, responded to threat 2263 | -8/Materials | Discovered new exit (range 15) 2323 | -8/Materials | Entered Factory 2323 | -7/Factory | Evolved 2 slots: Utility x2 3966 | -7/Factory | Build established: Scavenger-Mutant 4151 | -7/Factory | Lost 3 parts (2u1w) 4734 | -7/Factory | Build established: Mutant 5075 | -7/Factory | Build established: Scavenger-Mutant 5197 | -7/Factory | Discovered new exit (range 5) 5204 | -7/Factory | Entered another Factory area 5204 | -6/Factory | Evolved 2 slots: Power x1, Weapon x1 5518 | -6/Factory | Build established: Scavenger-Tank 5764 | -6/Factory | Lost 3 parts (1p1u1w) 6167 | -6/Factory | Cargo convoy interrupted 6198 | -6/Factory | Garrison activated, responded to threat 6332 | -6/Factory | Discovered new exit (range 5) 6342 | -6/Factory | Build established: Tank 6377 | -6/Factory | Entered Extension 6546 | -6/Extension | Spotted B-75 Beast 6650 | -6/Extension | Build established: Gunner 6743 | -6/Extension | Lost 3 parts (2n1u) 6789 | -6/Extension | Rescued A7 6848 | -6/Extension | Rescued a captive Derelict 7037 | -6/Extension | Rescued a captive Derelict 7050 | -6/Extension | Spotted B-75 Beast 7078 | -6/Extension | Allies destroyed B-75 Beast 7085 | -6/Extension | Crushed by falling debris 7094 | -6/Extension | Extracted ID and sensor layout for unrecognized location from A7's data core 7096 | -6/Extension | Core integrity fell below 50% 7104 | -6/Extension | Core integrity fell below 20% 7115 | -6/Extension | Destroyed by Y-54 Guardian with Flak Gun Last Messages --------------- 07091_ Penetrated by Slug. 07093_ Particle Gun destroyed. 07094_ Acquired data core, extracted ID and sensor data for unrecognized location. 07095_ Thermic Laser destroyed. 07095_ Penetrated by Slug. 07095_ Imp. Sensor Array destroyed. 07096_ Penetrated by Slug. 07096_ Slug penetrates R-10 Processor. 07099_ Penetrated by Slug. 07102_ R-10 Processor collects Corrupted Coolant Injector. 07104_ Penetrated by Slug. 07105_ R-10 Processor collects Corrupted Magnetic Acceleration Cannon. 07106_ System corrupted: Component data lost. 07109_ Knocked back. 07110_ R-10 Processor collects Hvy. Machine Gun. 07113_ R-10 Processor collects Sml. Matter Pod. 07115_ Knocked back. Map ----- +----------------------------------------------------+ | ?????????????????????????????????????????????????? | | ?????????????????????????????????????????????????? | | ?????????????????????????????????????????????????? | | ?????????????????????????????????????????????????? | | ########################?????????????????????????? | | ^ ! #?????????????????????????? | | =%! #?????????????????????????? | | ^!!%== #?????????????????????????? | | %=! #?????????????????????????? | | ### ###????????# % #?????????????????????????? | | # #??????????# ####??????????????????????? | | # #????#####?#= #??????????????????????? | | = # #????#"""#?#[######## #??????????????????????? | | # #???##"T"###%#??????# #??????????????????????? | | # ##### [#!#??????# #??????????????????????? | | # ##""" "" # #??????# #??????????????????????? | | ### ##"T """ # #??????# #??????????????????????? | | ??# ##""" R" + #??????# #??????????????????????? | | ### ##### """ ###??????# #??????????????????????? | | + #????????# #??????????????????????? | | ################????????# #??????????????????????? | | ????????????????????????# #??????????????????????? | | ????????????????????????# #??????????????????????? | | ??????????????????????### #??????????????????????? | | ????????????????????###T# #??????????????????????? | | ????????????????????# @#??????????????????????? | | ????????????????????##### #??????????????????????? | | ????????????????????????#%#??????????????????????? | | ????????????????????????#%#??????????????????????? | | ??????????????????????### #??????????????????????? | | ???????????????????####%# ##?????????????????????? | | ???????????????????# % ;Yh## ## ### #???????????? | | ????????????????????# " "" ""??????????? | | ????????????????????# " % " " #?????????? | | ????????????????????###% B #?????????? | | ??????????????????????# =B #?????????? | | #######################% ] #?????????? | | ==% ???????? | | %* ???????? | | R ???????? | | = ????????? | | !%! u % ????????? | | +###################### #?????????? | | #????????????????????# #?????????? | | #????????????????????# #?????????? | | ##????????????????????# ???????????? | | ??????????????????????# ?????????????? | | ??????????????????????######T#"""#???????????????? | | ????????????????????????????#????????????????????? | | ?????????????????????????????????????????????????? | +----------------------------------------------------+ Best States ------------- Heat Dissipation 103 Energy Generation 31 Energy Capacity 350 Matter Stores 300 Matter Capacity 300 Sight Range 18 Robot Scan Range 15 Terrain Scan Density 10 Base Temperature (-) 100 Armor Coverage 450 Resistance: KI 50 Resistance: TH 20 Resistance: EX 20 Resistance: EM 20 Resistance: I 20 Resistance: S 20 Resistance: P 20 Evasion (%) 55 Core Analysis 6 Recoil Reduction 4 Kinecelleration 30 Offensive Hacking 10 Item Schematics ----------------- None Robot Schematics ------------------ None Fabricated ------------ Nothing Alien Tech Used ----------------- None Achievements -------------- Prison Break Challenges ------------ None Game ------ Seed EncryptedThermicCore Manual? 0 Play Time 01:08:33 Cumulative 27.5 hours Start 2025.03.11 @ 00:38:27 End 2025.03.11 @ 01:45:51 Sessions 1 Manual Loads 0 Difficulty Adventurer Special Mode None Game No. 28 Rogue 0 Adventurer 28 Explorer 0 Win Type - Total 0 Types 0/0/0/0/0/0/0/0/0 Lore% 18 Gallery% 26 Achievement% 23 Wizard Run 0 Options --------- Layout 1 ASCII 0 Keyboard 0 Movement Mouse Keybinds 0 Fullscreen 1 Font 24/Smallcaps Map View 50x35 Zoom Use 11% Tactical HUD 1 Map Filters NONE Filters NONE Steam 1 RUN: d81460bf-fd98-4b8b-bffb-79f426e81c76